[Event "Live Chess"]
[Site "Chess.com"]
[Date "2023.05.21"]
[Round "-"]
[White "SupremeTactician"]
[Black "MarkLim1"]
[Result "1/2-1/2"]
[WhiteElo "2203"]
[BlackElo "1734"]
[TimeControl "300"]
[EndTime "8:09:58 PDT"]
[Termination "Game drawn by repetition"]

1. e4 {[%clk 0:04:59.9]} 1... c6 {[%clk 0:04:58.5]} 2. d4 {[%clk 0:04:55.7]}
2... d5 {[%clk 0:04:57.5]} 3. Nc3 {[%clk 0:04:55.6]} 3... dxe4 {[%clk 0:04:55]}
4. Nxe4 {[%clk 0:04:55.5]} 4... Bf5 {[%clk 0:04:54.2]} 5. Nc5 {[%clk 0:04:54.7]}
5... Nd7 {[%clk 0:04:51.9]} 6. Nxb7 {[%clk 0:04:53.5]} 6... Qb6 {[%clk
0:04:45.9]} 7. Nc5 {[%clk 0:04:52.1]} 7... Nxc5 {[%clk 0:04:44.5]} 8. dxc5
{[%clk 0:04:51.3]} 8... Qxc5 {[%clk 0:04:43.7]} 9. Bd3 {[%clk 0:04:50.5]} 9...
Bxd3 {[%clk 0:04:42.2]} 10. Qxd3 {[%clk 0:04:49.4]} 10... Nf6 {[%clk 0:04:39.3]}
11. Be3 {[%clk 0:04:48.1]} 11... Qd6 {[%clk 0:04:35.8]} 12. Qxd6 {[%clk
0:04:47.2]} 12... exd6 {[%clk 0:04:34.9]} 13. O-O-O {[%clk 0:04:47.1]} 13... d5
{[%clk 0:04:33.9]} 14. Ne2 {[%clk 0:04:46.2]} 14... Bd6 {[%clk 0:04:32.2]} 15.
Bf4 {[%clk 0:04:45.1]} 15... Bxf4+ {[%clk 0:04:30.7]} 16. Nxf4 {[%clk 0:04:45]}
16... O-O {[%clk 0:04:28.3]} 17. Rhe1 {[%clk 0:04:43.7]} 17... Rfe8 {[%clk
0:04:26.3]} 18. Nd3 {[%clk 0:04:40.5]} 18... h6 {[%clk 0:04:16.2]} 19. Kd2
{[%clk 0:04:37.8]} 19... Kf8 {[%clk 0:04:15]} 20. f3 {[%clk 0:04:36.2]} 20...
Rab8 {[%clk 0:04:09.1]} 21. b3 {[%clk 0:04:34.8]} 21... Nd7 {[%clk 0:03:55.4]}
22. Rxe8+ {[%clk 0:04:32]} 22... Rxe8 {[%clk 0:03:54.2]} 23. Re1 {[%clk
0:04:31.9]} 23... Rxe1 {[%clk 0:03:52.3]} 24. Nxe1 {[%clk 0:04:29.4]} 24... Ke7
{[%clk 0:03:51.2]} 25. Nd3 {[%clk 0:04:28]} 25... Kd6 {[%clk 0:03:49.8]} 26. Ke3
{[%clk 0:04:27.4]} 26... a5 {[%clk 0:03:29.1]} 27. a4 {[%clk 0:04:25.4]} 27...
Nc5 {[%clk 0:03:17.8]} 28. Nxc5 {[%clk 0:04:22.7]} 28... Kxc5 {[%clk 0:03:16.9]}
29. Kd3 {[%clk 0:04:19]} 29... Kd6 {[%clk 0:03:03.5]} 30. Kd4 {[%clk 0:04:16.8]}
30... c5+ {[%clk 0:03:02.6]} 31. Ke3 {[%clk 0:04:16.2]} 31... Ke5 {[%clk
0:02:56.4]} 32. f4+ {[%clk 0:04:14.3]} 32... Kd6 {[%clk 0:02:53]} 33. g4 {[%clk
0:04:12.9]} 33... g6 {[%clk 0:02:51.3]} 34. h4 {[%clk 0:04:12]} 34... f5 {[%clk
0:02:47.8]} 35. gxf5 {[%clk 0:03:35.3]} 35... gxf5 {[%clk 0:02:42.9]} 36. h5
{[%clk 0:03:34.8]} 36... Ke6 {[%clk 0:02:41.2]} 37. Kd3 {[%clk 0:03:32.3]} 37...
Kd6 {[%clk 0:02:39.7]} 38. c3 {[%clk 0:03:30.7]} 38... Ke6 {[%clk 0:02:36.1]}
39. Ke3 {[%clk 0:03:17.9]} 39... Kd6 {[%clk 0:02:33.1]} 40. Kd3 {[%clk
0:03:16.9]} 40... Ke6 {[%clk 0:02:32.2]} 41. Ke3 {[%clk 0:02:59.5]} 41... Kd6
{[%clk 0:02:30.8]} 42. Kd3 {[%clk 0:02:59.2]} 1/2-1/2

[Event "Live Chess"]
[Site "Chess.com"]
[Date "2023.05.21"]
[Round "-"]
[White "nigelst"]
[Black "Cimon"]
[Result "0-1"]
[WhiteElo "1700"]
[BlackElo "1845"]
[TimeControl "300"]
[EndTime "8:10:01 PDT"]
[Termination "Cimon won on time"]

1. e4 {[%clk 0:04:59]} 1... c5 {[%clk 0:04:57.4]} 2. Nf3 {[%clk 0:04:57.6]} 2...
Nc6 {[%clk 0:04:56.3]} 3. Bb5 {[%clk 0:04:55.7]} 3... g6 {[%clk 0:04:55]} 4. O-O
{[%clk 0:04:51.4]} 4... Bg7 {[%clk 0:04:50.2]} 5. c3 {[%clk 0:04:49.1]} 5... e5
{[%clk 0:04:46.7]} 6. Re1 {[%clk 0:04:44.4]} 6... Nge7 {[%clk 0:04:43.6]} 7. d3
{[%clk 0:04:36.6]} 7... O-O {[%clk 0:04:41.6]} 8. Be3 {[%clk 0:04:34.7]} 8... d6
{[%clk 0:04:39.4]} 9. d4 {[%clk 0:04:26.6]} 9... cxd4 {[%clk 0:04:36.9]} 10.
cxd4 {[%clk 0:04:25.2]} 10... h6 {[%clk 0:04:30.6]} 11. d5 {[%clk 0:04:10]}
11... Nb8 {[%clk 0:04:23.8]} 12. Qd2 {[%clk 0:04:08.3]} 12... Kh7 {[%clk
0:04:21.8]} 13. Nc3 {[%clk 0:04:03.1]} 13... a6 {[%clk 0:04:19.5]} 14. Ba4
{[%clk 0:04:01.1]} 14... Bd7 {[%clk 0:04:11]} 15. Bxd7 {[%clk 0:03:57.2]} 15...
Nxd7 {[%clk 0:04:09.7]} 16. Rac1 {[%clk 0:03:54.5]} 16... b5 {[%clk 0:03:56.8]}
17. a3 {[%clk 0:03:52.5]} 17... f5 {[%clk 0:03:54.3]} 18. exf5 {[%clk
0:03:50.1]} 18... gxf5 {[%clk 0:03:53.3]} 19. Qe2 {[%clk 0:03:38.2]} 19... Nf6
{[%clk 0:03:14.4]} 20. Bd2 {[%clk 0:03:25.7]} 20... Ng6 {[%clk 0:03:04.4]} 21.
g3 {[%clk 0:03:15]} 21... Rc8 {[%clk 0:02:59.5]} 22. h4 {[%clk 0:03:03.2]} 22...
Ne7 {[%clk 0:02:50.6]} 23. Na2 {[%clk 0:02:35.8]} 23... Ne4 {[%clk 0:02:36.8]}
24. Nc3 {[%clk 0:02:18.1]} 24... Nxc3 {[%clk 0:02:32.6]} 25. Bxc3 {[%clk
0:02:15.7]} 25... Nxd5 {[%clk 0:02:23.3]} 26. Red1 {[%clk 0:02:09.2]} 26... Nxc3
{[%clk 0:02:15.6]} 27. bxc3 {[%clk 0:02:07.6]} 27... Qe7 {[%clk 0:02:10.3]} 28.
h5 {[%clk 0:01:58.1]} 28... f4 {[%clk 0:02:02.4]} 29. Nh4 {[%clk 0:01:52]} 29...
Qg5 {[%clk 0:01:33.8]} 30. Qe4+ {[%clk 0:01:45.2]} 30... Kg8 {[%clk 0:01:27.3]}
31. Qd5+ {[%clk 0:01:42.6]} 31... Rf7 {[%clk 0:01:21.1]} 32. Qg2 {[%clk
0:01:19.8]} 32... fxg3 {[%clk 0:01:10.7]} 33. fxg3 {[%clk 0:01:14.2]} 33... Qxh5
{[%clk 0:01:03.3]} 34. Rxd6 {[%clk 0:01:00.2]} 34... e4 {[%clk 0:00:54.4]} 35.
Qxe4 {[%clk 0:00:43.4]} 35... Qc5+ {[%clk 0:00:52.9]} 36. Kh2 {[%clk 0:00:40.2]}
36... Qxd6 {[%clk 0:00:51.2]} 37. Nf5 {[%clk 0:00:27]} 37... Qc5 {[%clk
0:00:38.1]} 38. Nd6 {[%clk 0:00:17.4]} 38... Qxd6 {[%clk 0:00:34.8]} 39. Re1
{[%clk 0:00:14.9]} 39... Qd2+ {[%clk 0:00:29.6]} 40. Re2 {[%clk 0:00:13.2]}
40... Qxc3 {[%clk 0:00:24.2]} 41. Qe6 {[%clk 0:00:10.5]} 41... Qc6 {[%clk
0:00:16.6]} 42. Qxc6 {[%clk 0:00:04.5]} 42... Rxc6 {[%clk 0:00:15.6]} 43. Re5
{[%clk 0:00:03]} 43... Bxe5 {[%clk 0:00:13.9]} 44. Kh3 {[%clk 0:00:02.9]} 44...
Rc3 {[%clk 0:00:12.7]} 45. Kh4 {[%clk 0:00:02.2]} 45... Rxg3 {[%clk 0:00:11.6]}
0-1

[Event "Live Chess"]
[Site "Chess.com"]
[Date "2023.05.21"]
[Round "-"]
[White "Crowded_House"]
[Black "FlyingChessKestrel13"]
[Result "0-1"]
[WhiteElo "1608"]
[BlackElo "2060"]
[TimeControl "300"]
[EndTime "8:10:01 PDT"]
[Termination "FlyingChessKestrel13 won by resignation"]

1. d4 {[%clk 0:04:58.9]} 1... Nf6 {[%clk 0:04:58.3]} 2. Bg5 {[%clk 0:04:58.3]}
2... e6 {[%clk 0:04:55.5]} 3. e3 {[%clk 0:04:57]} 3... Be7 {[%clk 0:04:54.7]} 4.
Nd2 {[%clk 0:04:54.1]} 4... d5 {[%clk 0:04:53.6]} 5. Ngf3 {[%clk 0:04:52.9]}
5... Nbd7 {[%clk 0:04:52.3]} 6. Bd3 {[%clk 0:04:52.5]} 6... b6 {[%clk
0:04:49.9]} 7. O-O {[%clk 0:04:50.1]} 7... Bb7 {[%clk 0:04:48.8]} 8. c3 {[%clk
0:04:49.2]} 8... O-O {[%clk 0:04:47.9]} 9. Qc2 {[%clk 0:04:47.5]} 9... h6 {[%clk
0:04:46.3]} 10. Bh4 {[%clk 0:04:46.6]} 10... c5 {[%clk 0:04:43.1]} 11. dxc5
{[%clk 0:04:42]} 11... Nxc5 {[%clk 0:04:41.8]} 12. Be2 {[%clk 0:04:35.4]} 12...
Nfe4 {[%clk 0:04:40.5]} 13. Nxe4 {[%clk 0:04:32.2]} 13... Nxe4 {[%clk
0:04:30.3]} 14. Bxe7 {[%clk 0:04:30.2]} 14... Qxe7 {[%clk 0:04:29.6]} 15. Bd3
{[%clk 0:04:18.2]} 15... Rac8 {[%clk 0:04:25.9]} 16. Bxe4 {[%clk 0:04:13.4]}
16... dxe4 {[%clk 0:04:24.6]} 17. Nd4 {[%clk 0:04:12.1]} 17... Rc5 {[%clk
0:04:17.9]} 18. Nb3 {[%clk 0:04:07.9]} 18... Rh5 {[%clk 0:04:15.4]} 19. Rad1
{[%clk 0:03:55.3]} 19... Ba6 {[%clk 0:04:11.7]} 20. Rfe1 {[%clk 0:03:51.3]}
20... Bd3 {[%clk 0:04:10.4]} 21. Qd2 {[%clk 0:03:43]} 21... Qh4 {[%clk 0:04:06]}
22. h3 {[%clk 0:03:39.5]} 22... Rg5 {[%clk 0:04:02.2]} 23. Kh2 {[%clk
0:03:33.7]} 23... Rf5 {[%clk 0:03:55.1]} 24. Nc1 {[%clk 0:03:23.3]} 24... Rxf2
{[%clk 0:03:51.7]} 25. Nxd3 {[%clk 0:03:11]} 25... Rxd2 {[%clk 0:03:49.3]} 26.
Rxd2 {[%clk 0:03:10.1]} 26... exd3 {[%clk 0:03:47.6]} 27. Red1 {[%clk 0:03:07]}
27... Qc4 {[%clk 0:03:46.5]} 28. Rxd3 {[%clk 0:03:04.6]} 28... Qxa2 {[%clk
0:03:45.1]} 29. R1d2 {[%clk 0:03:03]} 29... Qa5 {[%clk 0:03:43.5]} 30. Kg1
{[%clk 0:03:00.9]} 30... Rc8 {[%clk 0:03:39.7]} 31. Kf2 {[%clk 0:02:58.1]} 31...
Qf5+ {[%clk 0:03:37.7]} 32. Kg1 {[%clk 0:02:56.9]} 32... Kh7 {[%clk 0:03:33.7]}
33. Kh2 {[%clk 0:02:55.7]} 33... Qe5+ {[%clk 0:03:32.2]} 34. Kg1 {[%clk
0:02:54.6]} 34... Rc5 {[%clk 0:03:30.4]} 35. Kf1 {[%clk 0:02:52.9]} 35... Qg3
{[%clk 0:03:28.8]} 36. Kg1 {[%clk 0:02:51.3]} 36... Rf5 {[%clk 0:03:21.9]} 37.
e4 {[%clk 0:02:45.9]} 37... Qe1+ {[%clk 0:03:21.1]} 38. Kh2 {[%clk 0:02:43.5]}
38... Rf1 {[%clk 0:03:20.7]} 39. g4 {[%clk 0:02:32.8]} 39... Rh1+ {[%clk
0:03:15.3]} 40. Kg2 {[%clk 0:02:31.7]} 40... Qg1+ {[%clk 0:03:14.7]} 41. Kf3
{[%clk 0:02:30.5]} 41... Rxh3+ {[%clk 0:03:14]} 42. Ke2 {[%clk 0:02:29.1]} 42...
Rxd3 {[%clk 0:03:12.9]} 43. Rxd3 {[%clk 0:02:27.8]} 43... Qg2+ {[%clk
0:03:12.2]} 44. Ke3 {[%clk 0:02:26.4]} 44... Qxb2 {[%clk 0:03:11.6]} 0-1

[Event "Live Chess"]
[Site "Chess.com"]
[Date "2023.05.21"]
[Round "-"]
[White "JoshMcK"]
[Black "Hussamalhaidar"]
[Result "1-0"]
[WhiteElo "1573"]
[BlackElo "1155"]
[TimeControl "300"]
[EndTime "8:10:13 PDT"]
[Termination "JoshMcK won by resignation"]

1. e4 {[%clk 0:04:59.4]} 1... d6 {[%clk 0:04:55.9]} 2. d4 {[%clk 0:04:57.8]}
2... Nf6 {[%clk 0:04:53.5]} 3. Nc3 {[%clk 0:04:55.6]} 3... Bg4 {[%clk
0:04:46.9]} 4. f3 {[%clk 0:04:52.4]} 4... Bh5 {[%clk 0:04:45.1]} 5. Be3 {[%clk
0:04:47]} 5... h6 {[%clk 0:04:41.7]} 6. Qd2 {[%clk 0:04:43.6]} 6... a6 {[%clk
0:04:29.8]} 7. g4 {[%clk 0:04:33.7]} 7... Bg6 {[%clk 0:04:25.8]} 8. O-O-O {[%clk
0:04:32.5]} 8... Nc6 {[%clk 0:04:19.6]} 9. h4 {[%clk 0:04:31]} 9... e5 {[%clk
0:04:09.4]} 10. dxe5 {[%clk 0:04:17.2]} 10... Nxe5 {[%clk 0:04:04.2]} 11. h5
{[%clk 0:04:09.4]} 11... Bh7 {[%clk 0:04:01]} 12. Nd5 {[%clk 0:04:02.9]} 12...
Nxd5 {[%clk 0:03:49]} 13. Qxd5 {[%clk 0:04:02.8]} 13... c6 {[%clk 0:03:39.7]}
14. Qb3 {[%clk 0:03:57.3]} 14... b5 {[%clk 0:03:32.9]} 15. Bf4 {[%clk
0:03:47.5]} 15... Nc4 {[%clk 0:03:23.8]} 16. Bxc4 {[%clk 0:03:42.7]} 16... bxc4
{[%clk 0:03:17.2]} 17. Qxc4 {[%clk 0:03:42.6]} 17... Be7 {[%clk 0:03:02.2]} 18.
Qxc6+ {[%clk 0:03:38.8]} 18... Kf8 {[%clk 0:02:55.4]} 19. Bxd6 {[%clk
0:03:35.9]} 19... Bxd6 {[%clk 0:02:48.2]} 20. Rxd6 {[%clk 0:03:27.1]} 20... Qg5+
{[%clk 0:02:31.4]} 21. Kb1 {[%clk 0:03:19.1]} 21... Rd8 {[%clk 0:02:27.5]} 22.
Nh3 {[%clk 0:02:51.9]} 22... Rxd6 {[%clk 0:02:15.2]} 23. Qxd6+ {[%clk
0:02:50.1]} 23... Qe7 {[%clk 0:02:12.8]} 24. Qxe7+ {[%clk 0:02:47.4]} 24... Kxe7
{[%clk 0:02:11.1]} 25. b3 {[%clk 0:02:43.2]} 25... Rd8 {[%clk 0:02:07.6]} 26.
Nf4 {[%clk 0:02:41.4]} 26... g5 {[%clk 0:02:03]} 27. hxg6 {[%clk 0:02:36.6]}
27... fxg6 {[%clk 0:01:58.2]} 28. Rxh6 {[%clk 0:02:33.1]} 28... Rh8 {[%clk
0:01:38.1]} 29. Nxg6+ {[%clk 0:02:30.8]} 29... Bxg6 {[%clk 0:01:28.8]} 30. Rxh8
{[%clk 0:02:30]} 1-0

[Event "Live Chess"]
[Site "Chess.com"]
[Date "2023.05.21"]
[Round "-"]
[White "ossie57"]
[Black "McSlash1"]
[Result "1-0"]
[WhiteElo "1849"]
[BlackElo "1984"]
[TimeControl "300"]
[EndTime "8:10:28 PDT"]
[Termination "ossie57 won by resignation"]

1. d4 {[%clk 0:04:59]} 1... Nf6 {[%clk 0:04:59]} 2. Nc3 {[%clk 0:04:58.1]} 2...
d5 {[%clk 0:04:56.8]} 3. Bf4 {[%clk 0:04:56.4]} 3... g6 {[%clk 0:04:55.7]} 4. e3
{[%clk 0:04:52.7]} 4... Bg7 {[%clk 0:04:55.1]} 5. Nb5 {[%clk 0:04:50]} 5... Na6
{[%clk 0:04:53.1]} 6. h4 {[%clk 0:04:48.1]} 6... O-O {[%clk 0:04:50.1]} 7. Be2
{[%clk 0:04:47]} 7... h5 {[%clk 0:04:48.9]} 8. Be5 {[%clk 0:04:35.2]} 8... c6
{[%clk 0:04:47.4]} 9. Nc3 {[%clk 0:04:33.7]} 9... Nc7 {[%clk 0:04:45.3]} 10.
Bxf6 {[%clk 0:04:32.9]} 10... Bxf6 {[%clk 0:04:45.2]} 11. g4 {[%clk 0:04:32.2]}
11... hxg4 {[%clk 0:04:42.1]} 12. Bxg4 {[%clk 0:04:30.7]} 12... e5 {[%clk
0:04:38.4]} 13. dxe5 {[%clk 0:04:26.6]} 13... Bxe5 {[%clk 0:04:37.1]} 14. Bxc8
{[%clk 0:04:25.3]} 14... Rxc8 {[%clk 0:04:37]} 15. h5 {[%clk 0:04:23.6]} 15...
g5 {[%clk 0:04:32.6]} 16. Qd3 {[%clk 0:04:18.4]} 16... f5 {[%clk 0:04:27.6]} 17.
O-O-O {[%clk 0:04:13.9]} 17... Qf6 {[%clk 0:04:26.8]} 18. Nge2 {[%clk
0:04:12.1]} 18... Nb5 {[%clk 0:04:24.6]} 19. Nxb5 {[%clk 0:04:09.8]} 19... cxb5
{[%clk 0:04:24.5]} 20. Qxd5+ {[%clk 0:04:08.5]} 20... Kh7 {[%clk 0:04:19.8]} 21.
Qxb7+ {[%clk 0:04:04.7]} 21... Rc7 {[%clk 0:04:16.3]} 22. Qxb5 {[%clk
0:04:03.2]} 22... Rfc8 {[%clk 0:04:11.6]} 23. Rd7+ {[%clk 0:03:58.3]} 23... Kh6
{[%clk 0:04:07.7]} 24. Rxc7 {[%clk 0:03:54.6]} 24... Rxc7 {[%clk 0:04:07.6]} 25.
c3 {[%clk 0:03:45.5]} 25... f4 {[%clk 0:04:05.2]} 26. exf4 {[%clk 0:03:33.3]}
26... gxf4 {[%clk 0:04:05.1]} 27. Rg1 {[%clk 0:03:28.1]} 27... Qf5 {[%clk
0:03:50.1]} 28. Qe8 {[%clk 0:03:13.5]} 28... f3 {[%clk 0:03:34.3]} 29. Rg6+
{[%clk 0:02:57.4]} 29... Kxh5 {[%clk 0:03:24.2]} 30. Rf6+ {[%clk 0:02:51.9]}
30... Kg5 {[%clk 0:03:22.9]} 31. Rxf5+ {[%clk 0:02:45.5]} 31... Kxf5 {[%clk
0:03:22.8]} 32. Qf8+ {[%clk 0:02:32.6]} 32... Bf6 {[%clk 0:03:20.2]} 33. Ng3+
{[%clk 0:02:27.6]} 33... Kg6 {[%clk 0:03:14.2]} 34. Qe8+ {[%clk 0:02:20.9]}
34... Kg7 {[%clk 0:03:09.3]} 35. Nf5+ {[%clk 0:02:16.5]} 35... Kh7 {[%clk
0:03:03.1]} 36. Qh5+ {[%clk 0:02:07.8]} 36... Kg8 {[%clk 0:02:59.5]} 37. Qg6+
{[%clk 0:02:02.5]} 37... Bg7 {[%clk 0:02:57.2]} 38. Qe6+ {[%clk 0:01:54.3]}
38... Kh7 {[%clk 0:02:51.1]} 39. Nxg7 {[%clk 0:01:50.7]} 39... Rxg7 {[%clk
0:02:49.8]} 40. Qf5+ {[%clk 0:01:49.9]} 40... Kg8 {[%clk 0:02:48.6]} 41. Qxf3
{[%clk 0:01:49]} 41... Rf7 {[%clk 0:02:48.2]} 42. Qxf7+ {[%clk 0:01:46.7]} 1-0

[Event "Live Chess"]
[Site "Chess.com"]
[Date "2023.05.21"]
[Round "-"]
[White "friarnator"]
[Black "TheAuditer"]
[Result "1-0"]
[WhiteElo "2029"]
[BlackElo "1385"]
[TimeControl "300"]
[EndTime "8:10:28 PDT"]
[Termination "friarnator won by resignation"]

1. d4 {[%clk 0:04:57.9]} 1... d5 {[%clk 0:04:54]} 2. Nc3 {[%clk 0:04:54.8]} 2...
Nf6 {[%clk 0:04:51.5]} 3. Bf4 {[%clk 0:04:54.2]} 3... Bf5 {[%clk 0:04:45.9]} 4.
e3 {[%clk 0:04:53]} 4... e6 {[%clk 0:04:42.8]} 5. Nf3 {[%clk 0:04:52.2]} 5...
Nbd7 {[%clk 0:04:39.6]} 6. Ne5 {[%clk 0:04:51.3]} 6... Nxe5 {[%clk 0:04:37.2]}
7. dxe5 {[%clk 0:04:50.4]} 7... Nd7 {[%clk 0:04:30.5]} 8. g4 {[%clk 0:04:49.1]}
8... Bg6 {[%clk 0:04:26.3]} 9. h4 {[%clk 0:04:48.5]} 9... h6 {[%clk 0:04:21.6]}
10. Bd3 {[%clk 0:04:43.3]} 10... Bxd3 {[%clk 0:04:17.6]} 11. Qxd3 {[%clk
0:04:43.2]} 11... c5 {[%clk 0:04:11.7]} 12. O-O-O {[%clk 0:04:33.1]} 12... Be7
{[%clk 0:04:09.4]} 13. g5 {[%clk 0:04:30.2]} 13... hxg5 {[%clk 0:04:03]} 14.
hxg5 {[%clk 0:04:28.1]} 14... Rxh1 {[%clk 0:03:52.6]} 15. Rxh1 {[%clk 0:04:28]}
15... Qc7 {[%clk 0:03:37.4]} 16. g6 {[%clk 0:04:19.7]} 16... f6 {[%clk
0:03:30.3]} 17. exf6 {[%clk 0:04:15.7]} 1-0

[Event "Live Chess"]
[Site "Chess.com"]
[Date "2023.05.21"]
[Round "-"]
[White "LiamBellwood"]
[Black "Hacker_2009"]
[Result "1-0"]
[WhiteElo "1922"]
[BlackElo "1947"]
[TimeControl "300"]
[EndTime "8:10:29 PDT"]
[Termination "LiamBellwood won by resignation"]

1. d4 {[%clk 0:04:56.1]} 1... Nf6 {[%clk 0:04:58.6]} 2. Nc3 {[%clk 0:04:54.8]}
2... d5 {[%clk 0:04:56.7]} 3. Bf4 {[%clk 0:04:53.9]} 3... a6 {[%clk 0:04:56]} 4.
e3 {[%clk 0:04:52.6]} 4... e6 {[%clk 0:04:55.4]} 5. Qf3 {[%clk 0:04:51.3]} 5...
c5 {[%clk 0:04:54]} 6. g4 {[%clk 0:04:50.6]} 6... cxd4 {[%clk 0:04:53]} 7. exd4
{[%clk 0:04:50.1]} 7... Nc6 {[%clk 0:04:52.5]} 8. g5 {[%clk 0:04:49.1]} 8... Ne4
{[%clk 0:04:46.5]} 9. Nxe4 {[%clk 0:04:43.2]} 9... dxe4 {[%clk 0:04:45.8]} 10.
Qxe4 {[%clk 0:04:38.9]} 10... Qxd4 {[%clk 0:04:45.4]} 11. Qxd4 {[%clk 0:04:30]}
11... Nxd4 {[%clk 0:04:44]} 12. O-O-O {[%clk 0:04:29.9]} 12... Nc6 {[%clk
0:04:36.7]} 13. Bg2 {[%clk 0:04:28.4]} 13... Bd7 {[%clk 0:04:34.9]} 14. h4
{[%clk 0:04:25.7]} 14... Be7 {[%clk 0:04:33.3]} 15. Nf3 {[%clk 0:04:16.9]} 15...
Rd8 {[%clk 0:04:32.2]} 16. Bc7 {[%clk 0:04:11.8]} 16... Rc8 {[%clk 0:04:30.7]}
17. Bb6 {[%clk 0:04:11]} 17... Nb4 {[%clk 0:04:29.3]} 18. c3 {[%clk 0:03:55.2]}
18... Nd5 {[%clk 0:04:26.6]} 19. Bd4 {[%clk 0:03:47.4]} 19... O-O {[%clk
0:04:24.9]} 20. Ne5 {[%clk 0:03:37.6]} 20... Bc6 {[%clk 0:04:21.8]} 21. Nxc6
{[%clk 0:03:36.5]} 21... Rxc6 {[%clk 0:04:20]} 22. Rhe1 {[%clk 0:03:36.1]} 22...
Bc5 {[%clk 0:03:55.6]} 23. Bxc5 {[%clk 0:03:22.8]} 23... Rxc5 {[%clk 0:03:54.4]}
24. Bxd5 {[%clk 0:03:22.3]} 24... Rxd5 {[%clk 0:03:46.8]} 25. Rxd5 {[%clk
0:03:21.2]} 25... exd5 {[%clk 0:03:46.7]} 26. Re7 {[%clk 0:03:20.6]} 26... Rd8
{[%clk 0:03:43]} 27. Rxb7 {[%clk 0:03:18.1]} 27... g6 {[%clk 0:03:42.5]} 28. Rb4
{[%clk 0:02:59.9]} 28... Kg7 {[%clk 0:03:38]} 29. Rd4 {[%clk 0:02:59.5]} 29...
h6 {[%clk 0:03:35]} 30. c4 {[%clk 0:02:57.7]} 30... Rc8 {[%clk 0:03:32.8]} 31.
b3 {[%clk 0:02:53.2]} 31... dxc4 {[%clk 0:03:31.8]} 32. Rxc4 {[%clk 0:02:50.3]}
32... Re8 {[%clk 0:03:30.6]} 33. Kd2 {[%clk 0:02:44.5]} 33... hxg5 {[%clk
0:03:28.6]} 34. hxg5 {[%clk 0:02:43]} 34... Re5 {[%clk 0:03:28.1]} 35. f4 {[%clk
0:02:41.7]} 35... Rf5 {[%clk 0:03:26.8]} 36. Ke3 {[%clk 0:02:40.7]} 36... Ra5
{[%clk 0:03:25.1]} 37. a4 {[%clk 0:02:37.3]} 37... Rd5 {[%clk 0:03:24]} 38. Rc6
{[%clk 0:02:30.3]} 38... a5 {[%clk 0:03:22.2]} 39. Rb6 {[%clk 0:02:29]} 39...
Rc5 {[%clk 0:03:16]} 40. Rb5 {[%clk 0:02:26.1]} 40... Rc3+ {[%clk 0:03:11.7]}
41. Kd4 {[%clk 0:02:24.2]} 41... Rf3 {[%clk 0:03:10.5]} 42. Ke4 {[%clk
0:02:23.6]} 42... Rc3 {[%clk 0:03:09.4]} 43. Kd4 {[%clk 0:01:52.8]} 43... Rf3
{[%clk 0:03:07.1]} 44. Rxa5 {[%clk 0:01:51.9]} 44... Rxf4+ {[%clk 0:03:06.2]}
45. Kc5 {[%clk 0:01:48.3]} 45... Rf5+ {[%clk 0:03:04.4]} 46. Kb6 {[%clk
0:01:47.9]} 46... Rf3 {[%clk 0:03:03]} 47. b4 {[%clk 0:01:45]} 47... Rb3 {[%clk
0:03:01.7]} 48. b5 {[%clk 0:01:44]} 48... Rg3 {[%clk 0:02:55.2]} 49. Ka6 {[%clk
0:01:40.9]} 49... Rxg5 {[%clk 0:02:55.1]} 50. b6 {[%clk 0:01:40.2]} 1-0

[Event "Live Chess"]
[Site "Chess.com"]
[Date "2023.05.21"]
[Round "-"]
[White "raminguy"]
[Black "manthanit"]
[Result "1-0"]
[WhiteElo "1962"]
[BlackElo "1102"]
[TimeControl "300"]
[EndTime "8:10:38 PDT"]
[Termination "raminguy won by resignation"]

1. d4 {[%clk 0:04:58.7]} 1... e6 {[%clk 0:04:58.8]} 2. Nc3 {[%clk 0:04:58.2]}
2... d5 {[%clk 0:04:58.2]} 3. Bf4 {[%clk 0:04:57.7]} 3... c5 {[%clk 0:04:55.9]}
4. e4 {[%clk 0:04:53.8]} 4... a6 {[%clk 0:04:54.1]} 5. dxc5 {[%clk 0:04:51.1]}
5... Bxc5 {[%clk 0:04:51.1]} 6. exd5 {[%clk 0:04:50.1]} 6... exd5 {[%clk
0:04:48.7]} 7. Qxd5 {[%clk 0:04:48.7]} 7... Qe7+ {[%clk 0:04:13.9]} 8. Nge2
{[%clk 0:04:41.7]} 8... Nf6 {[%clk 0:04:13.3]} 9. Qg5 {[%clk 0:04:32.1]} 9...
O-O {[%clk 0:04:10.7]} 10. O-O-O {[%clk 0:04:30.6]} 10... Bxf2 {[%clk
0:03:43.9]} 11. Be5 {[%clk 0:04:21.1]} 11... Nc6 {[%clk 0:02:58.5]} 12. Bxf6
{[%clk 0:04:13.7]} 12... Qxf6 {[%clk 0:02:56.8]} 13. Qxf6 {[%clk 0:04:12.7]}
13... gxf6 {[%clk 0:02:56]} 14. Ne4 {[%clk 0:04:10.4]} 14... Bh4 {[%clk
0:02:33.9]} 15. g3 {[%clk 0:04:08]} 15... Bg5+ {[%clk 0:02:32.8]} 16. Kb1 {[%clk
0:04:06.8]} 16... Bf5 {[%clk 0:02:25.6]} 17. Nd6 {[%clk 0:03:51.9]} 17... Rad8
{[%clk 0:02:09.5]} 18. Bg2 {[%clk 0:03:49.6]} 18... Bg4 {[%clk 0:01:49.9]} 19.
Rhe1 {[%clk 0:03:33.1]} 19... Ne5 {[%clk 0:00:58.5]} 20. h3 {[%clk 0:03:27.4]}
20... Bxe2 {[%clk 0:00:37.5]} 21. Rxe2 {[%clk 0:03:24.4]} 21... b5 {[%clk
0:00:29.4]} 22. h4 {[%clk 0:03:16.2]} 22... Bh6 {[%clk 0:00:21.4]} 23. Ree1
{[%clk 0:03:12]} 23... Rd7 {[%clk 0:00:16.5]} 24. Bh3 {[%clk 0:03:07.6]} 24...
Re7 {[%clk 0:00:09.7]} 25. Nf5 {[%clk 0:03:05.9]} 25... Rd7 {[%clk 0:00:07.1]}
26. Nxh6+ {[%clk 0:03:03.6]} 26... Kg7 {[%clk 0:00:06.1]} 27. Bxd7 {[%clk
0:02:59.1]} 27... Nxd7 {[%clk 0:00:04.2]} 28. Nf5+ {[%clk 0:02:55.6]} 1-0